[Event "2nd China Preliminary Asian Games 2022"]
[Site "HangZhou"]
[Date "2022.04.23"]
[Round "9.3"]
[White "Wei, Yi"]
[Black "Xu, Xiangyu"]
[Result "1/2-1/2"]
[ECO "D38"]
[WhiteElo "2729"]
[BlackElo "2564"]
[Annotator "TA"]
[PlyCount "69"]
[EventDate "2022.04.13"]
[EventType "tourn"]
[EventCountry "CHN"]
[SourceTitle "playchess.com"]
[Source "ChessBase"]
[SourceQuality "1"]
[TimeControl "40/5400+30:1800+30"]

{[%evp 18,69,10,13,4,10,10,9,9,6,7,13,13,6,6,6,6,6,6,6,7,0,0,0,0,0,0,0,0,0,0,0,0,0,0,0,0,0,0,0,0,0,0,0,0,0,0,0,0,0,0,0,0,0]} 1. d4 {[%emt 0:07:27]} Nf6 {[%emt 0:00:09]} 2. c4 {[%emt 0:00:38]} e6 {[%emt 0:01:38]} 3. Nc3 {[%emt 0:01:28]} Bb4 {[%emt 0:00:22]} 4. Nf3 {[%emt 0:03:19]} d5 {[%emt 0:00:27]} 5. Bg5 {[%emt 0:06:32]} h6 {[%emt 0:00:40]} 6. Bxf6 {[%emt 0:03:54]} Qxf6 {[%emt 0:00:10]} 7. e3 {[%emt 0:00:03]} O-O {[%emt 0:00:20]} 8. Rc1 {[%emt 0:00:12]} dxc4 {[%emt 0:00:24]} 9. Bxc4 {[%emt 0:00:02]} c5 {[%emt 0:00:13]} 10. O-O {[%emt 0:00:03] Black should prevent Ne4. The position is equal.} cxd4 {[%emt 0:00:13] D38: Queen's Gambit Declined: Ragozin Defence (4 Nf3 Bb4).} 11. Ne4 {[%emt 0:00:06]} Qe7 {[%emt 0:00:46]} 12. Nxd4 {[%emt 0:00:05]} Bd7 {[%emt 0:00:23]} 13. Be2 {[%emt 0:00:05]} Nc6 {[%emt 0:00:36]} 14. a3 {[%emt 0:00:03]} Nxd4 {[%emt 0:03:03]} 15. Qxd4 {[%emt 0:00:02] [#] Strongly threatening Rc7.} Ba5 {[%emt 0:00:12][%cal Bb4a5,Ba5d8,Bd8e7][%mdl 32] Inhibits Rc7.} 16. Qc5 {[%emt 0:00:03]} Bd8 {[%emt 0:00:45]} 17. Qxe7 {[%emt 0:00:06] The old main line.} Bxe7 {[%emt 0:00:08]} 18. Rc7 {[%emt 0:00:08][%csl LRb7,LRd7]} Rfd8 {[%emt 0:00:37]} 19. Bf3 {[%emt 0:00:02] [#]} a5 $146 {[%emt 0:00:43]} ({Predecessor:} 19... Kf8 20. Rxb7 Rab8 21. Rxb8 Rxb8 22. b4 Rc8 23. h3 f5 24. Ng3 Rc3 25. Ra1 Bf6 {½-½ (34) Tan,Z (2517)-Ju,W (2567) Huaian 2017}) 20. Rxb7 {[%emt 0:00:13]} Rab8 {[%emt 0:00:11]} 21. Rxb8 {[%emt 0:00:04]} Rxb8 {[%emt 0:00:09]} 22. Rd1 {[%emt 0:00:02]} Bc6 {[%emt 0:00:16]} 23. Rd2 {[%emt 0:00:05]} Bxa3 {[%emt 0:02:17]} 24. bxa3 {[%emt 0:00:03]} Rb1+ {[%emt 0:00:10]} 25. Rd1 {[%emt 0:00:02]} Bxe4 {[%emt 0:02:21]} 26. Rxb1 {[%emt 0:00:06]} Bxb1 $11 {[%emt 0:00:06][%mdl 4096] Endgame KB-KB} 27. Kf1 {[%emt 0:00:03]} Kf8 {[%emt 0:00:13]} 28. Ke2 {[%emt 0:00:02]} Ke7 {[%emt 0:00:09]} 29. Kd2 {[%emt 0:00:03]} Kd6 {[%emt 0:00:09]} 30. Kc3 {[%emt 0:00:02]} Kc5 {[%emt 0:00:13]} 31. g3 {[%emt 0:00:28]} f6 {[%emt 0:00:38]} 32. Bg2 {[%emt 0:00:27]} Bh7 {[%emt 0:00:08]} 33. f4 {[%emt 0:00:13]} e5 {[%emt 0:00:14]} 34. Bf3 {[%emt 0:00:06]} Bb1 {[%emt 0:00:08]} 35. Bg2 {[%emt 0:00:37] A balanced but interesting game.  Weighted Error Value: White=0.00 (flawless) /Black=0.00 (flawless)} 1/2-1/2

[Event "2nd China Preliminary Asian Games 2022"]
[Site "HangZhou"]
[Date "2022.04.24"]
[Round "10.1"]
[White "Xu, Xiangyu"]
[Black "Zhang, Zhong"]
[Result "0-1"]
[ECO "E12"]
[WhiteElo "2564"]
[BlackElo "2640"]
[Annotator "TA"]
[PlyCount "85"]
[EventDate "2022.04.13"]
[EventType "tourn"]
[EventCountry "CHN"]
[SourceTitle "playchess.com"]
[Source "ChessBase"]
[SourceQuality "1"]
[TimeControl "40/5400+30:1800+30"]

{[%evp 13,85,23,23,23,21,16,23,10,7,19,22,-17,-32,-43,-38,-44,-35,-40,-29,-27,-35,-33,-23,-39,-16,-42,-20,-53,-39,-37,-45,-43,0,0,0,-61,-40,-51,-50,-53,-56,-51,-41,-88,-85,-94,-71,-78,-83,-90,-87,-69,-81,-99,-90,-127,-102,-181,-171,-247,-176,-187,-191,-221,-207,-522,-507,-510,-503,-635,-631,-588,-594,-29998]} 1. d4 {[%emt 0:00:13]} Nf6 {[%emt 0:00:07]} 2. Nf3 {[%emt 0:00:16]} e6 {[%emt 0:00:45]} 3. c4 {[%emt 0:00:22]} b6 {[%emt 0:00:08]} 4. a3 {[%emt 0:01:06]} Ba6 {[%emt 0:00:08]} 5. Qc2 {[%emt 0:00:07]} Bb7 {[%emt 0:00:10]} 6. Nc3 {[%emt 0:00:26]} c5 {[%emt 0:00:09]} 7. dxc5 {[%emt 0:08:24]} bxc5 {[%emt 0:03:46]} 8. Bg5 {[%emt 0:00:35] E12: Queen's Indian: Unusual White 4th moves, 4 a3, 4 Nc3 Bb7 5 a3 and 4 Nc3 Bb7 .} d6 $5 {[%emt 0:05:09][%mdl 4] Exploring less charted territory.} 9. e3 {[%emt 0:00:36]} Nbd7 {[%emt 0:00:13]} 10. Be2 {[%emt 0:09:04] [#] White has an edge.} h6 $146 {[%emt 0:02:45]} ({Predecessor:} 10... Be7 11. O-O h6 12. Bh4 g5 13. Bg3 h5 14. Nxg5 h4 15. Nxe6 fxe6 16. Qg6+ Kf8 {0-1 (81) Gomez Jurado,L (2350)-Berg,E (2540) Calvia 2005}) 11. Bh4 {[%emt 0:00:06]} Qb6 {[%emt 0:02:47]} 12. Bg3 {[%emt 0:02:35]} Nh5 {[%emt 0:06:49]} 13. Rd1 {[%emt 0:05:18][%cal Og3d6]} Nxg3 {[%emt 0:00:59]} 14. hxg3 {[%emt 0:00:07]} Rb8 {[%emt 0:00:31]} 15. Rd2 {[%emt 0:01:49]} Nf6 {[%emt 0:00:41]} 16. O-O {[%emt 0:01:59]} Be7 {[%emt 0:00:29]} 17. b4 {[%emt 0:06:23]} O-O {[%emt 0:06:53]} 18. Rb1 {[%emt 0:00:08]} Rfc8 {[%emt 0:00:41]} 19. Qa2 {[%emt 0:06:10]} Ba8 {[%emt 0:18:20]} 20. Ne1 {[%emt 0:08:45]} Qc7 {[%emt 0:07:53]} 21. Nb5 {[%emt 0:10:24]} Qd7 {[%emt 0:00:57] Strongly threatening ...Ne4.} 22. Nc3 {[%emt 0:02:00]} Qc7 {[%emt 0:01:51]} 23. Nb5 {[%emt 0:00:17]} Qd7 {[%emt 0:03:32]} 24. Nc3 {[%emt 0:00:10]} a6 {[%emt 0:01:08]} (24... d5 $5 {[%cal Rc5b4]}) 25. bxc5 {[%emt 0:07:40]} Rxb1 {[%emt 0:00:29]} 26. Qxb1 {[%emt 0:00:05]} Rxc5 {[%emt 0:00:19]} 27. Rb2 {[%emt 0:00:10][%cal Oc3a4]} Rc8 {[%emt 0:01:53]} 28. Nf3 {[%emt 0:16:50]} (28. Rb8 $15) 28... Qa7 $17 {[%emt 0:03:06]} 29. Na4 {[%emt 0:05:36]} Bc6 {[%emt 0:03:44]} 30. Nb6 {[%emt 0:00:06]} Rd8 {[%emt 0:00:17]} 31. Nd4 {[%emt 0:00:20]} Be8 {[%emt 0:00:28]} 32. Bf3 {[%emt 0:02:30]} Qc7 {[%emt 0:00:44]} 33. Qc2 {[%emt 0:04:51]} Qc5 {[%emt 0:01:37]} 34. Na4 {[%emt 0:01:29] [#]} Qa5 {[%emt 0:06:11]} 35. Bd1 {[%emt 0:00:31]} (35. Nb6 $17) 35... Rc8 {[%emt 0:02:01]} 36. Rb7 {[%emt 0:00:30]} (36. Qc3 $142 Qxc3 37. Nxc3) 36... Bd8 {[%emt 0:04:05]} 37. Kf1 {[%emt 0:00:27]} d5 {[%emt 0:04:19]} 38. c5 {[%emt 0:00:28]} e5 {[%emt 0:09:31]} 39. Qf5 $2 {[%emt 0:00:03]} (39. Ne2) 39... Ra8 {[%emt 0:01:49] Black is clearly winning.} 40. Qxe5 {[%emt 0:00:00]} Bxa4 {[%emt 0:00:00]} 41. Bh5 {[%emt 0:03:43]} Qxc5 {[%emt 0:02:17]} 42. Bxf7+ {[%emt 0:06:57]} Kh8 {[%emt 0:00:23] [#] ( -> ...Qc1+)} 43. Qe6 {[%emt 0:22:24] Weighted Error Value: White=0.28 (precise) /Black=0.08 (flawless)} 0-1

[Event "2nd China Preliminary Asian Games 2022"]
[Site "HangZhou"]
[Date "2022.04.24"]
[Round "10.2"]
[White "Ma, Qun"]
[Black "Wei, Yi"]
[Result "1/2-1/2"]
[ECO "C47"]
[WhiteElo "2645"]
[BlackElo "2729"]
[Annotator "TA"]
[PlyCount "61"]
[EventDate "2022.04.13"]
[EventType "tourn"]
[EventCountry "CHN"]
[SourceTitle "playchess.com"]
[Source "ChessBase"]
[SourceQuality "1"]
[TimeControl "40/5400+30:1800+30"]

{[%evp 21,61,0,0,-4,-7,-4,-3,-4,-6,-5,2,0,0,0,0,-4,0,-2,0,0,40,0,5,0,0,-16,-13,-12,0,0,0,0,0,0,0,0,0,0,0,0,0,0]} 1. e4 {[%emt 0:00:09]} e5 {[%emt 0:00:38]} 2. Nf3 {[%emt 0:00:16]} Nc6 {[%emt 0:00:30]} 3. d4 {[%emt 0:00:47]} exd4 {[%emt 0:00:22]} 4. Nxd4 {[%emt 0:00:08]} Nf6 {[%emt 0:01:07]} 5. Nc3 {[%emt 0:00:44]} Bb4 {[%emt 0:00:44]} 6. Nxc6 {[%emt 0:00:16]} bxc6 {[%emt 0:00:07]} 7. Bd3 {[%emt 0:00:11]} O-O {[%emt 0:00:51]} 8. O-O {[%emt 0:00:53]} d5 {[%emt 0:00:21]} 9. exd5 {[%emt 0:00:31]} cxd5 {[%emt 0:00:25]} 10. Bg5 {[%emt 0:01:00]} c6 {[%emt 0:00:15]} 11. Qf3 {[%emt 0:00:20]} Rb8 {[%emt 0:00:16][%cal Ba8b8,Bb8b7,Bb7c7][%mdl 32] 11...h6 is a critical line.} 12. Ne2 {[%emt 0:01:46] C47: Scotch Four Knights and Four Knights with 4 g3.} Bg4 {[%emt 0:01:14]} 13. Bxf6 {[%emt 0:00:39] [#] Black must now prevent Bxh7+.} Bxf3 {[%emt 0:00:09]} 14. Bxd8 {[%emt 0:00:09] Hoping for Bc7.} Bxe2 {[%emt 0:00:07]} 15. Bxe2 {[%emt 0:00:06] [#] Bc7 is the strong threat.} Re8 $146 {[%emt 0:01:01]} ({Predecessor:} 15... Rfxd8 16. a3 Bd6 17. b4 c5 18. Rfd1 cxb4 19. axb4 Bxb4 20. Rxa7 Bc5 21. Ra5 Rbc8 {½-½ (38) Wei,Y (2732)-Yu,Y (2709) Chess.com INT 2020}) 16. Bc7 {[%emt 0:01:42]} Rb7 {[%emt 0:00:12]} 17. Bd3 {[%emt 0:00:35] [#] aiming for Bf4.} Rxc7 {[%emt 0:00:12]} 18. a3 {[%emt 0:00:06]} Bc5 {[%emt 0:00:40]} 19. Rfe1 {[%emt 0:00:20]} Rxe1+ {[%emt 0:00:07]} 20. Rxe1 $11 {[%emt 0:00:05][%mdl 4096] Endgame KRB-KRB} Re7 {[%emt 0:00:04] Against Re8+} 21. Kf1 {[%emt 0:00:41]} Rxe1+ {[%emt 0:00:09] The position is equal.} 22. Kxe1 {[%emt 0:00:05] KB-KB} Kf8 {[%emt 0:00:08]} 23. b4 {[%emt 0:00:16]} Bd4 {[%emt 0:00:37]} 24. Ke2 {[%emt 0:00:17]} h6 {[%emt 0:00:52]} 25. c4 {[%emt 0:00:16]} dxc4 {[%emt 0:00:10]} 26. Bxc4 {[%emt 0:00:08]} Bb2 {[%emt 0:00:03]} 27. a4 {[%emt 0:00:07]} Ba3 {[%emt 0:00:04]} 28. b5 {[%emt 0:00:07]} cxb5 {[%emt 0:00:03]} 29. Bxb5 {[%emt 0:00:05]} a5 {[%emt 0:00:04]} 30. h3 {[%emt 0:00:23]} Bb4 {[%emt 0:00:15]} 31. Kf1 {[%emt 0:00:30] An interesting draw.  Weighted Error Value: White=0.05 (flawless) /Black=0.04 (flawless)} 1/2-1/2

[Event "2nd China Preliminary Asian Games 2022"]
[Site "HangZhou"]
[Date "2022.04.24"]
[Round "10.3"]
[White "Ding, Liren"]
[Black "Bu, Xiangzhi"]
[Result "1/2-1/2"]
[ECO "C67"]
[WhiteElo "2799"]
[BlackElo "2700"]
[Annotator "TA"]
[PlyCount "61"]
[EventDate "2022.04.13"]
[EventType "tourn"]
[EventCountry "CHN"]
[SourceTitle "playchess.com"]
[Source "ChessBase"]
[SourceQuality "1"]
[TimeControl "40/5400+30:1800+30"]

{[%evp 18,61,16,10,20,17,14,19,21,12,22,9,8,5,7,3,4,7,8,0,0,0,0,0,10,0,0,0,0,0,0,0,2,0,0,0,5,0,9,0,0,0,0,0,0,0]} 1. e4 {[%emt 0:00:03]} e5 {[%emt 0:00:10]} 2. Nf3 {[%emt 0:00:04]} Nc6 {[%emt 0:00:27]} 3. Bb5 {[%emt 0:00:05]} Nf6 {[%emt 0:00:27]} 4. O-O {[%emt 0:00:07][%cal Bh1f1,Bf1e1,Be1e5][%mdl 32]} Nxe4 {[%emt 0:00:11]} 5. Re1 {[%emt 0:00:07]} Nd6 {[%emt 0:00:13]} 6. Nxe5 {[%emt 0:00:07]} Be7 {[%emt 0:00:08]} 7. Bf1 {[%emt 0:00:11]} Nxe5 {[%emt 0:00:30]} 8. Rxe5 {[%emt 0:00:06]} O-O {[%emt 0:00:09]} 9. d4 {[%emt 0:00:20]} Bf6 {[%emt 0:00:32]} 10. Re1 {[%emt 0:00:24] The position is equal.} Re8 {[%emt 0:01:13] C67: Ruy Lopez: Berlin Defence: 4 0-0 Nxe4.} 11. c3 {[%emt 0:00:09]} Rxe1 {[%emt 0:01:39]} 12. Qxe1 {[%emt 0:00:07]} Ne8 {[%emt 0:00:31][%cal Bd6e8,Be8g7,Bg7f5][%mdl 32]} 13. Bf4 {[%emt 0:00:17]} d5 {[%emt 0:01:08]} 14. Bd3 {[%emt 0:00:08]} g6 {[%emt 0:02:06]} 15. Nd2 {[%emt 0:00:13]} Ng7 {[%emt 0:01:42]} 16. Nf3 {[%emt 0:00:55] 16.Nf3 scores better than 16.Qe2.} Bf5 {[%emt 0:01:09]} 17. Bxf5 {[%emt 0:00:07]} Nxf5 {[%emt 0:00:05]} 18. Qe2 {[%emt 0:00:14]} c6 {[%emt 0:01:36] Inhibits Qb5.} 19. Re1 {[%emt 0:00:50]} Ng7 {[%emt 0:00:27]} 20. Be5 {[%emt 0:00:47]} Ne6 {[%emt 0:00:28]} 21. Bxf6 {[%emt 0:00:07]} Qxf6 {[%emt 0:00:04]} 22. Qe5 {[%emt 0:00:13]} Qxe5 {[%emt 0:02:04]} 23. Nxe5 $11 {[%emt 0:00:06][%mdl 4096] Endgame KRN-KRN} Kg7 {[%emt 0:00:28]} 24. Kf1 {[%emt 0:00:07] [#]} Re8 $146 {[%emt 0:00:20]} ({Predecessor:} 24... Rd8 25. g3 Nc7 26. Nd3 Ne6 27. Ne5 Nc7 28. Nd3 Ne6 29. Ne5 Nc7 30. Nd3 Ne6 {½-½ (30) Ma,Q (2620)-Cheparinov,I (2711) China 2018}) 25. Nd3 {[%emt 0:00:07]} Kf8 {[%emt 0:00:33]} 26. h4 {[%emt 0:00:22]} h5 {[%emt 0:00:41]} 27. g3 {[%emt 0:00:05]} Re7 {[%emt 0:00:22]} 28. Re3 {[%emt 0:00:07]} Ng7 {[%emt 0:00:38]} 29. Ke2 {[%emt 0:00:08]} Nf5 {[%emt 0:00:05]} 30. Rxe7 {[%emt 0:00:05]} Kxe7 {[%emt 0:00:03]} 31. Kf3 {[%emt 0:01:02] Not much happened in this game.  Weighted Error Value: White=0.03 (flawless) /Black=0.01 (flawless)} 1/2-1/2